[Event "*** Titled Tuesday Blitz"]
[Site "Chess.com"]
[Date "2019.02.05"]
[Round "6"]
[White "Kostya_Nikologorskiy"]
[Black "r31415"]
[Result "1-0"]
[WhiteElo "2415"]
[BlackElo "2283"]
[TimeControl "180+2"]
[EndTime "14:23:55 PST"]
[Termination "Kostya_Nikologorskiy won by resignation"]

1. e4 {[%clk 0:02:55.3]} 1... e5 {[%clk 0:03:01]} 2. Nf3 {[%clk 0:02:54.3]} 2...
Nc6 {[%clk 0:03:02.5]} 3. Bb5 {[%clk 0:02:53.5]} 3... Nf6 {[%clk 0:03:03.8]} 4.
O-O {[%clk 0:02:50]} 4... Nxe4 {[%clk 0:03:04.6]} 5. Re1 {[%clk 0:02:43]} 5...
Nd6 {[%clk 0:03:05.7]} 6. Nxe5 {[%clk 0:02:31.6]} 6... Be7 {[%clk 0:03:06.8]} 7.
Ba4 {[%clk 0:02:20.7]} 7... Nf5 {[%clk 0:02:57.5]} 8. d4 {[%clk 0:02:17.8]} 8...
Nfxd4 {[%clk 0:02:47.7]} 9. c3 {[%clk 0:01:50.9]} 9... Ne6 {[%clk 0:02:43.1]}
10. Nxc6 {[%clk 0:01:35.6]} 10... dxc6 {[%clk 0:02:42.2]} 11. Qh5 {[%clk
0:01:31.1]} 11... O-O {[%clk 0:02:33.6]} 12. Nd2 {[%clk 0:01:28.2]} 12... Nf4
{[%clk 0:02:29.2]} 13. Qf3 {[%clk 0:01:27.7]} 13... Nd3 {[%clk 0:02:19.1]} 14.
Rd1 {[%clk 0:01:28.8]} 14... Nxc1 {[%clk 0:02:14.6]} 15. Raxc1 {[%clk
0:01:30.5]} 15... Be6 {[%clk 0:02:05.9]} 16. Ne4 {[%clk 0:01:26.1]} 16... Qc8
{[%clk 0:02:06.8]} 17. h3 {[%clk 0:01:22.9]} 17... Rd8 {[%clk 0:02:07.8]} 18.
Bc2 {[%clk 0:01:23.6]} 18... Rxd1+ {[%clk 0:02:08.2]} 19. Rxd1 {[%clk
0:01:25.5]} 19... Qe8 {[%clk 0:02:04.7]} 20. Re1 {[%clk 0:01:19.2]} 20... Rd8
{[%clk 0:02:03.1]} 21. Qh5 {[%clk 0:01:18.2]} 21... h6 {[%clk 0:01:56.3]} 22. f4
{[%clk 0:01:06.5]} 22... Rd5 {[%clk 0:01:55.4]} 23. Qf3 {[%clk 0:01:05.6]} 23...
Qd8 {[%clk 0:01:34.5]} 24. c4 {[%clk 0:01:01.8]} 24... Rd7 {[%clk 0:01:34.5]}
25. f5 {[%clk 0:00:55.5]} 25... Bxc4 {[%clk 0:01:32.7]} 26. f6 {[%clk
0:00:56.6]} 26... Bf8 {[%clk 0:01:18.3]} 27. Qg4 {[%clk 0:00:47.4]} 27... Be6
{[%clk 0:01:15]} 28. Qg3 {[%clk 0:00:41.6]} 28... Rd4 {[%clk 0:01:05]} 29. Nc5
{[%clk 0:00:34.4]} 29... Qxf6 {[%clk 0:00:52.6]} 30. Nxe6 {[%clk 0:00:27.8]}
30... fxe6 {[%clk 0:00:52.5]} 31. Rf1 {[%clk 0:00:29.2]} 31... Qe7 {[%clk
0:00:47.6]} 32. Qg6 {[%clk 0:00:28.9]} 32... Rf4 {[%clk 0:00:25.5]} 33. Rxf4
{[%clk 0:00:17.4]} 33... Qc5+ {[%clk 0:00:25.6]} 34. Kh2 {[%clk 0:00:18.6]}
34... Qxc2 {[%clk 0:00:12.7]} 35. Qxc2 {[%clk 0:00:18.1]} 35... Bd6 {[%clk
0:00:14.6]} 36. g3 {[%clk 0:00:19.4]} 1-0

[Event "*** Titled Tuesday Blitz"]
[Site "Chess.com"]
[Date "2019.02.05"]
[Round "6"]
[White "Keaton87"]
[Black "Kumi29"]
[Result "0-1"]
[WhiteElo "2532"]
[BlackElo "2453"]
[TimeControl "180+2"]
[EndTime "14:23:56 PST"]
[Termination "Kumi29 won on time"]

1. d4 {[%clk 0:03:01.9]} 1... f5 {[%clk 0:03:00.5]} 2. Nc3 {[%clk 0:03:02.2]}
2... Nf6 {[%clk 0:03:01.3]} 3. Bg5 {[%clk 0:03:02.8]} 3... d5 {[%clk 0:03:02.9]}
4. e3 {[%clk 0:02:58.1]} 4... e6 {[%clk 0:02:59.1]} 5. Nf3 {[%clk 0:02:57.4]}
5... a6 {[%clk 0:03:00.4]} 6. Bd3 {[%clk 0:02:55.8]} 6... c5 {[%clk 0:03:01.2]}
7. O-O {[%clk 0:02:49.5]} 7... Nc6 {[%clk 0:03:02.3]} 8. dxc5 {[%clk 0:02:49.5]}
8... Bxc5 {[%clk 0:03:01.2]} 9. Ne2 {[%clk 0:02:19.5]} 9... O-O {[%clk
0:02:59.6]} 10. c4 {[%clk 0:02:19.9]} 10... dxc4 {[%clk 0:02:23]} 11. Bxc4
{[%clk 0:02:20.7]} 11... b5 {[%clk 0:02:24.6]} 12. Bb3 {[%clk 0:02:15.8]} 12...
Na5 {[%clk 0:02:15.9]} 13. Rc1 {[%clk 0:02:04.9]} 13... Nxb3 {[%clk 0:02:13.9]}
14. Qxb3 {[%clk 0:02:02.7]} 14... Qb6 {[%clk 0:02:14.8]} 15. Nfd4 {[%clk
0:01:45.4]} 15... Kh8 {[%clk 0:02:11.9]} 16. Bxf6 {[%clk 0:01:36.7]} 16... Rxf6
{[%clk 0:02:10.8]} 17. Nf4 {[%clk 0:01:27.1]} 17... g5 {[%clk 0:02:02.9]} 18.
Rxc5 {[%clk 0:01:16.5]} 18... Qxc5 {[%clk 0:01:56.3]} 19. Nfxe6 {[%clk
0:01:17.4]} 19... Bxe6 {[%clk 0:01:54.2]} 20. Nxe6 {[%clk 0:01:18.5]} 20... Qc4
{[%clk 0:01:37.8]} 21. Nxg5 {[%clk 0:01:07.2]} 21... Qxb3 {[%clk 0:01:35.1]} 22.
axb3 {[%clk 0:01:09.1]} 22... Rc8 {[%clk 0:01:31.8]} 23. Nf3 {[%clk 0:01:02.9]}
23... Rc2 {[%clk 0:01:30.9]} 24. Nd4 {[%clk 0:00:47]} 24... Rxb2 {[%clk
0:01:31.4]} 25. g3 {[%clk 0:00:46.7]} 25... a5 {[%clk 0:01:16.8]} 26. Ra1 {[%clk
0:00:46]} 26... Ra6 {[%clk 0:01:15.1]} 27. Ra3 {[%clk 0:00:28.5]} 27... a4
{[%clk 0:01:08]} 28. bxa4 {[%clk 0:00:26.3]} 28... Rxa4 {[%clk 0:01:04.3]} 29.
Rc3 {[%clk 0:00:25.2]} 29... Ra1+ {[%clk 0:01:00.1]} 30. Kg2 {[%clk 0:00:25.9]}
30... Raa2 {[%clk 0:01:01.4]} 31. Rc8+ {[%clk 0:00:18.9]} 31... Kg7 {[%clk
0:01:02.3]} 32. Rc7+ {[%clk 0:00:20.8]} 32... Kf6 {[%clk 0:00:56.1]} 33. Rc6+
{[%clk 0:00:19.2]} 33... Kf7 {[%clk 0:00:52.5]} 34. Rc7+ {[%clk 0:00:13.5]}
34... Ke8 {[%clk 0:00:51.3]} 35. g4 {[%clk 0:00:08]} 35... Rxf2+ {[%clk
0:00:49.8]} 36. Kg3 {[%clk 0:00:09.3]} 36... Rg2+ {[%clk 0:00:41.6]} 37. Kf4
{[%clk 0:00:09.6]} 37... fxg4 {[%clk 0:00:31.1]} 38. Ke5 {[%clk 0:00:06.4]}
38... b4 {[%clk 0:00:30.9]} 39. Ne6 {[%clk 0:00:04.9]} 39... Ra5+ {[%clk
0:00:28.6]} 40. Kd6 {[%clk 0:00:02.2]} 40... Rd2+ {[%clk 0:00:29.3]} 41. Nd4
{[%clk 0:00:02.6]} 41... b3 {[%clk 0:00:27.4]} 0-1

[Event "*** Titled Tuesday Blitz"]
[Site "Chess.com"]
[Date "2019.02.05"]
[Round "6"]
[White "leoo2001"]
[Black "Sebastian"]
[Result "1-0"]
[WhiteElo "2788"]
[BlackElo "2870"]
[TimeControl "180+2"]
[EndTime "14:23:57 PST"]
[Termination "leoo2001 won by resignation"]

1. e4 {[%clk 0:03:01.9]} 1... c5 {[%clk 0:03:00.8]} 2. Nf3 {[%clk 0:03:01.7]}
2... d6 {[%clk 0:03:02.2]} 3. d4 {[%clk 0:03:00.3]} 3... cxd4 {[%clk 0:03:03.3]}
4. Nxd4 {[%clk 0:03:01.4]} 4... Nf6 {[%clk 0:03:04.6]} 5. Nc3 {[%clk 0:03:01.8]}
5... a6 {[%clk 0:03:06]} 6. h3 {[%clk 0:03:01.8]} 6... e5 {[%clk 0:03:06.4]} 7.
Nf3 {[%clk 0:03:01]} 7... Be7 {[%clk 0:03:03.8]} 8. Bc4 {[%clk 0:03:00]} 8...
O-O {[%clk 0:03:04.2]} 9. O-O {[%clk 0:02:59.4]} 9... Nc6 {[%clk 0:03:01.1]} 10.
Bg5 {[%clk 0:02:57.1]} 10... Be6 {[%clk 0:02:56.5]} 11. Bb3 {[%clk 0:02:56.5]}
11... Na5 {[%clk 0:02:56.4]} 12. Qd3 {[%clk 0:02:55.7]} 12... Nxb3 {[%clk
0:02:29.4]} 13. axb3 {[%clk 0:02:55.2]} 13... Nh5 {[%clk 0:02:30.1]} 14. Be3
{[%clk 0:02:54]} 14... f5 {[%clk 0:02:30.6]} 15. Rfd1 {[%clk 0:02:50.9]} 15...
f4 {[%clk 0:01:38.8]} 16. Bd2 {[%clk 0:02:40.2]} 16... Qe8 {[%clk 0:01:30]} 17.
Nd5 {[%clk 0:02:38]} 17... Bxd5 {[%clk 0:00:51.7]} 18. Qxd5+ {[%clk 0:02:35.9]}
18... Qf7 {[%clk 0:00:51]} 19. Qd3 {[%clk 0:02:28.3]} 19... h6 {[%clk
0:00:34.8]} 20. c4 {[%clk 0:02:25.7]} 20... Nf6 {[%clk 0:00:30.3]} 21. Bb4
{[%clk 0:02:21.3]} 21... Rad8 {[%clk 0:00:30.2]} 22. Rd2 {[%clk 0:02:17.9]}
22... g5 {[%clk 0:00:27.7]} 23. Qe2 {[%clk 0:02:13.1]} 23... Qg6 {[%clk
0:00:17.1]} 24. Re1 {[%clk 0:02:00.1]} 24... Qf7 {[%clk 0:00:09.9]} 25. Ba3
{[%clk 0:01:55.5]} 25... Qe6 {[%clk 0:00:10.7]} 26. Red1 {[%clk 0:01:54.1]}
26... Rd7 {[%clk 0:00:11.5]} 27. Nh2 {[%clk 0:01:53.6]} 27... Rfd8 {[%clk
0:00:11.6]} 28. Ng4 {[%clk 0:01:53.2]} 28... Ne8 {[%clk 0:00:12.6]} 29. f3
{[%clk 0:01:51.1]} 29... h5 {[%clk 0:00:13.2]} 30. Nf2 {[%clk 0:01:50.4]} 30...
Nf6 {[%clk 0:00:14.9]} 31. b4 {[%clk 0:01:46.7]} 31... Kf7 {[%clk 0:00:16.1]}
32. b3 {[%clk 0:01:46.2]} 32... Rg8 {[%clk 0:00:15.6]} 33. Bb2 {[%clk 0:01:45]}
33... Rc8 {[%clk 0:00:15]} 34. Rc2 {[%clk 0:01:43.4]} 34... Rcd8 {[%clk
0:00:13.9]} 35. Rd3 {[%clk 0:01:41.9]} 35... Rg8 {[%clk 0:00:14.4]} 36. Rcd2
{[%clk 0:01:41.3]} 36... Rgd8 {[%clk 0:00:14.6]} 37. Qd1 {[%clk 0:01:40.4]}
37... Ke8 {[%clk 0:00:13.7]} 38. Qa1 {[%clk 0:01:38.8]} 38... Kf7 {[%clk
0:00:13.7]} 39. Qa5 {[%clk 0:01:38.3]} 39... Rg8 {[%clk 0:00:14.5]} 40. b5
{[%clk 0:01:37.6]} 40... axb5 {[%clk 0:00:08.7]} 41. Qxb5 {[%clk 0:01:37.4]}
41... g4 {[%clk 0:00:10.1]} 42. hxg4 {[%clk 0:01:36.9]} 42... hxg4 {[%clk
0:00:11.3]} 43. fxg4 {[%clk 0:01:37]} 43... Nxg4 {[%clk 0:00:12.6]} 44. Nxg4
{[%clk 0:01:36.3]} 44... Qxg4 {[%clk 0:00:11.3]} 45. c5 {[%clk 0:01:37.3]} 45...
Qh4 {[%clk 0:00:09.9]} 46. Rf2 {[%clk 0:01:35.3]} 46... Rh8 {[%clk 0:00:10.1]}
47. Rh3 {[%clk 0:01:34.8]} 47... Qf6 {[%clk 0:00:02.6]} 48. Rxh8 {[%clk
0:01:33.9]} 48... Qxh8 {[%clk 0:00:03.8]} 49. Qxd7 {[%clk 0:01:32.6]} 49... Qh5
{[%clk 0:00:03.9]} 50. Rf1 {[%clk 0:01:29.9]} 50... Qg6 {[%clk 0:00:02.1]} 51.
Qf5+ {[%clk 0:01:27.9]} 51... Qxf5 {[%clk 0:00:03.2]} 52. exf5 {[%clk
0:01:29.6]} 52... Kf6 {[%clk 0:00:04.7]} 53. cxd6 {[%clk 0:01:30.5]} 53... Bxd6
{[%clk 0:00:05.8]} 54. Rxf4 {[%clk 0:01:27.7]} 54... Bc5+ {[%clk 0:00:04.1]} 55.
Kf1 {[%clk 0:01:28.4]} 1-0

[Event "*** Titled Tuesday Blitz"]
[Site "Chess.com"]
[Date "2019.02.05"]
[Round "6"]
[White "Tiqr777"]
[Black "Shukh_Nikolay"]
[Result "0-1"]
[WhiteElo "2566"]
[BlackElo "2388"]
[TimeControl "180+2"]
[EndTime "14:24:03 PST"]
[Termination "Shukh_Nikolay won by resignation"]

1. e4 {[%clk 0:03:01.9]} 1... e5 {[%clk 0:02:59.9]} 2. Nc3 {[%clk 0:03:02.3]}
2... Nc6 {[%clk 0:03:01.2]} 3. g3 {[%clk 0:03:03.3]} 3... Nf6 {[%clk 0:03:01.4]}
4. Bg2 {[%clk 0:03:04.5]} 4... Bc5 {[%clk 0:03:02.5]} 5. d3 {[%clk 0:03:05.6]}
5... O-O {[%clk 0:03:02.3]} 6. Nge2 {[%clk 0:03:03.2]} 6... Nd4 {[%clk 0:03:02]}
7. O-O {[%clk 0:03:03]} 7... c6 {[%clk 0:03:03.2]} 8. h3 {[%clk 0:02:56.5]} 8...
d5 {[%clk 0:03:02.1]} 9. exd5 {[%clk 0:02:37]} 9... cxd5 {[%clk 0:03:02.8]} 10.
Nxd4 {[%clk 0:02:24.8]} 10... Bxd4 {[%clk 0:03:03.4]} 11. Ne2 {[%clk 0:02:23.4]}
11... Bb6 {[%clk 0:03:03.7]} 12. c3 {[%clk 0:02:19.1]} 12... Be6 {[%clk
0:03:04.1]} 13. d4 {[%clk 0:02:20.2]} 13... e4 {[%clk 0:03:00]} 14. Be3 {[%clk
0:02:21.3]} 14... Qd7 {[%clk 0:02:57.9]} 15. Nf4 {[%clk 0:02:21.3]} 15... Bf5
{[%clk 0:02:55.4]} 16. g4 {[%clk 0:02:22.5]} 16... Be6 {[%clk 0:02:56.5]} 17.
Nxe6 {[%clk 0:02:23.2]} 17... Qxe6 {[%clk 0:02:56.2]} 18. Qd2 {[%clk 0:02:19.4]}
18... Bc7 {[%clk 0:02:55.6]} 19. Bf4 {[%clk 0:02:19]} 19... Rac8 {[%clk
0:02:56.1]} 20. Bxc7 {[%clk 0:02:19.1]} 20... Rxc7 {[%clk 0:02:57.1]} 21. Rae1
{[%clk 0:02:19.4]} 21... b5 {[%clk 0:02:55.3]} 22. a3 {[%clk 0:02:17.4]} 22...
a5 {[%clk 0:02:56.1]} 23. f3 {[%clk 0:02:18.5]} 23... Rfc8 {[%clk 0:02:55.3]}
24. fxe4 {[%clk 0:02:16.5]} 24... Nxe4 {[%clk 0:02:53.8]} 25. Bxe4 {[%clk
0:02:10.6]} 25... dxe4 {[%clk 0:02:54.8]} 26. Qf4 {[%clk 0:02:11.8]} 26... Re7
{[%clk 0:02:55]} 27. Re3 {[%clk 0:02:12.2]} 27... Rce8 {[%clk 0:02:52.8]} 28.
Rfe1 {[%clk 0:02:09.4]} 28... h6 {[%clk 0:02:53.9]} 29. Kg2 {[%clk 0:02:06.2]}
29... Qc6 {[%clk 0:02:54.6]} 30. R1e2 {[%clk 0:02:02.3]} 30... Qd5 {[%clk
0:02:55.3]} 31. Rf2 {[%clk 0:02:01.3]} 31... b4 {[%clk 0:02:54.8]} 32. axb4
{[%clk 0:02:01.2]} 32... axb4 {[%clk 0:02:56]} 33. Qf5 {[%clk 0:02:02.3]} 33...
Qc4 {[%clk 0:02:51.7]} 34. h4 {[%clk 0:01:48]} 34... bxc3 {[%clk 0:02:48.2]} 35.
bxc3 {[%clk 0:01:48.1]} 35... Ra8 {[%clk 0:02:32.9]} 36. g5 {[%clk 0:01:43]}
36... h5 {[%clk 0:02:28.7]} 37. Rb2 {[%clk 0:01:25.9]} 37... g6 {[%clk
0:02:23.8]} 38. Qb5 {[%clk 0:01:20.7]} 38... Qc8 {[%clk 0:02:20.9]} 39. Qe2
{[%clk 0:01:19.1]} 39... Qf5 {[%clk 0:02:16.4]} 40. Rb5 {[%clk 0:01:13.7]} 40...
Qf4 {[%clk 0:02:15.8]} 41. Qf2 {[%clk 0:01:00]} 41... Qg4+ {[%clk 0:02:16.7]}
42. Kh2 {[%clk 0:01:01.3]} 42... Ra1 {[%clk 0:02:00.7]} 43. d5 {[%clk
0:00:58.7]} 43... Rd1 {[%clk 0:01:55.6]} 44. c4 {[%clk 0:00:55.9]} 44... Rd3
{[%clk 0:01:56.3]} 45. Rb3 {[%clk 0:00:37.8]} 45... Rd1 {[%clk 0:01:30.2]} 46.
Rb6 {[%clk 0:00:31.9]} 46... Ra7 {[%clk 0:01:26.6]} 47. d6 {[%clk 0:00:31]}
47... Ra2 {[%clk 0:01:15.2]} 48. Qxa2 {[%clk 0:00:22.8]} 48... Qg1+ {[%clk
0:01:15]} 49. Kh3 {[%clk 0:00:22.5]} 49... Qxe3+ {[%clk 0:01:15.7]} 50. Kg2
{[%clk 0:00:22.1]} 50... Qxb6 {[%clk 0:01:13.8]} 0-1

[Event "*** Titled Tuesday Blitz"]
[Site "Chess.com"]
[Date "2019.02.05"]
[Round "6"]
[White "ShadyH9"]
[Black "idvidal"]
[Result "1-0"]
[WhiteElo "2331"]
[BlackElo "2471"]
[TimeControl "180+2"]
[EndTime "14:24:04 PST"]
[Termination "ShadyH9 won by resignation"]

1. d4 {[%clk 0:03:01.9]} 1... Nf6 {[%clk 0:02:59.2]} 2. c4 {[%clk 0:03:02.6]}
2... e6 {[%clk 0:02:59.3]} 3. Nf3 {[%clk 0:03:02.8]} 3... c5 {[%clk 0:02:57.7]}
4. e3 {[%clk 0:02:58.7]} 4... cxd4 {[%clk 0:02:56.5]} 5. exd4 {[%clk 0:02:58.6]}
5... d5 {[%clk 0:02:56.8]} 6. Nc3 {[%clk 0:02:59]} 6... Nc6 {[%clk 0:02:54.6]}
7. a3 {[%clk 0:02:52.7]} 7... dxc4 {[%clk 0:02:53.8]} 8. Bxc4 {[%clk 0:02:52.7]}
8... Be7 {[%clk 0:02:54.9]} 9. O-O {[%clk 0:02:52.8]} 9... O-O {[%clk 0:02:56]}
10. Bg5 {[%clk 0:02:30.7]} 10... b6 {[%clk 0:02:50.5]} 11. Qd3 {[%clk
0:02:28.9]} 11... Bb7 {[%clk 0:02:27.1]} 12. Rad1 {[%clk 0:02:29.4]} 12... Rc8
{[%clk 0:02:24.7]} 13. Ba2 {[%clk 0:02:16.5]} 13... Nd5 {[%clk 0:02:16.2]} 14.
Bb1 {[%clk 0:02:11.7]} 14... g6 {[%clk 0:02:10.2]} 15. Bh6 {[%clk 0:02:11.5]}
15... Re8 {[%clk 0:02:11.6]} 16. Ba2 {[%clk 0:01:39.6]} 16... Nxc3 {[%clk
0:01:23.6]} 17. bxc3 {[%clk 0:01:41.5]} 17... Na5 {[%clk 0:01:16.6]} 18. Ne5
{[%clk 0:01:34.5]} 18... Bg5 {[%clk 0:01:15.8]} 19. Qh3 {[%clk 0:01:13.6]} 19...
Bxh6 {[%clk 0:00:29.5]} 20. Qxh6 {[%clk 0:01:15.5]} 20... Qf6 {[%clk 0:00:18.3]}
21. Rd3 {[%clk 0:00:54.4]} 21... Qg7 {[%clk 0:00:15.5]} 22. Qf4 {[%clk
0:00:28.5]} 22... Ba6 {[%clk 0:00:11.6]} 23. Rf3 {[%clk 0:00:26.3]} 23... Bxf1
{[%clk 0:00:08.6]} 24. Kxf1 {[%clk 0:00:28.2]} 24... Re7 {[%clk 0:00:04.9]} 25.
Ng4 {[%clk 0:00:26.8]} 25... f5 {[%clk 0:00:05.7]} 26. Ne5 {[%clk 0:00:24.5]}
26... Nc6 {[%clk 0:00:03.5]} 27. Nc4 {[%clk 0:00:12.3]} 27... Qf7 {[%clk
0:00:03.5]} 28. Nd6 {[%clk 0:00:12.1]} 28... Qf8 {[%clk 0:00:04.7]} 29. Nxc8
{[%clk 0:00:12.6]} 29... Qxc8 {[%clk 0:00:06.6]} 30. Qd6 {[%clk 0:00:13.3]}
30... Qd7 {[%clk 0:00:07.4]} 31. Qxd7 {[%clk 0:00:13.3]} 31... Rxd7 {[%clk
0:00:09.3]} 32. Bxe6+ {[%clk 0:00:14.4]} 32... Rf7 {[%clk 0:00:11.2]} 33. d5
{[%clk 0:00:13.1]} 33... Ne5 {[%clk 0:00:12.2]} 34. Re3 {[%clk 0:00:11.3]} 34...
Ng4 {[%clk 0:00:13.5]} 35. Rd3 {[%clk 0:00:10.2]} 35... Nxh2+ {[%clk 0:00:14.3]}
36. Kg1 {[%clk 0:00:10.6]} 36... Ng4 {[%clk 0:00:15.7]} 37. d6 {[%clk
0:00:10.7]} 37... Ne5 {[%clk 0:00:16.9]} 38. d7 {[%clk 0:00:08]} 38... Nc6
{[%clk 0:00:16]} 39. d8=Q+ {[%clk 0:00:07.3]} 39... Nxd8 {[%clk 0:00:17.4]} 40.
Rxd8+ {[%clk 0:00:08.4]} 1-0

[Event "*** Titled Tuesday Blitz"]
[Site "Chess.com"]
[Date "2019.02.05"]
[Round "6"]
[White "TomasKapitanchuk"]
[Black "ruvat"]
[Result "1-0"]
[WhiteElo "2421"]
[BlackElo "2280"]
[TimeControl "180+2"]
[EndTime "14:24:08 PST"]
[Termination "TomasKapitanchuk won by resignation"]

1. e4 {[%clk 0:03:01.9]} 1... d6 {[%clk 0:03:00.5]} 2. d4 {[%clk 0:03:01.7]}
2... Nf6 {[%clk 0:03:01.1]} 3. Nc3 {[%clk 0:03:00.9]} 3... g6 {[%clk 0:03:01.6]}
4. h3 {[%clk 0:03:01.5]} 4... Bg7 {[%clk 0:03:02.1]} 5. Nf3 {[%clk 0:03:02.7]}
5... O-O {[%clk 0:03:02.6]} 6. Be2 {[%clk 0:03:03]} 6... c5 {[%clk 0:03:03.2]}
7. O-O {[%clk 0:03:02.6]} 7... cxd4 {[%clk 0:03:03.4]} 8. Nxd4 {[%clk
0:03:04.5]} 8... Nbd7 {[%clk 0:03:04.4]} 9. Bg5 {[%clk 0:03:01.7]} 9... a6
{[%clk 0:03:04.6]} 10. a4 {[%clk 0:03:01.8]} 10... Qc7 {[%clk 0:03:05.2]} 11.
Qd2 {[%clk 0:03:00.6]} 11... b6 {[%clk 0:03:04.6]} 12. Nd5 {[%clk 0:03:00.6]}
12... Nxd5 {[%clk 0:03:02.9]} 13. exd5 {[%clk 0:03:02.5]} 13... Nf6 {[%clk
0:03:02.7]} 14. c4 {[%clk 0:02:54.6]} 14... Ne4 {[%clk 0:02:54.7]} 15. Qe3
{[%clk 0:02:40.5]} 15... Nxg5 {[%clk 0:02:52.7]} 16. Nc6 {[%clk 0:02:41.7]}
16... h6 {[%clk 0:02:19.3]} 17. Nxe7+ {[%clk 0:02:29.1]} 17... Kh8 {[%clk
0:02:19.3]} 18. h4 {[%clk 0:02:29.8]} 18... Nh7 {[%clk 0:02:20]} 19. h5 {[%clk
0:02:22.6]} 19... g5 {[%clk 0:01:53.2]} 20. Bd3 {[%clk 0:02:17.1]} 20... Nf6
{[%clk 0:01:44.6]} 21. Nc6 {[%clk 0:01:55.6]} 21... Bd7 {[%clk 0:01:38.1]} 22.
Nd4 {[%clk 0:01:54.8]} 22... Rae8 {[%clk 0:01:37]} 23. Qf3 {[%clk 0:01:52.5]}
23... Re5 {[%clk 0:01:27.3]} 24. b3 {[%clk 0:01:31]} 24... Qc5 {[%clk
0:01:22.9]} 25. Nf5 {[%clk 0:01:21.5]} 25... Bxf5 {[%clk 0:01:22.3]} 26. Bxf5
{[%clk 0:01:23.4]} 26... Rfe8 {[%clk 0:01:20.9]} 27. Bc2 {[%clk 0:01:20.4]}
27... a5 {[%clk 0:01:20.7]} 28. Rad1 {[%clk 0:01:14.8]} 28... Qc8 {[%clk
0:01:16.3]} 29. Bd3 {[%clk 0:01:07.3]} 29... Qg4 {[%clk 0:01:16.6]} 30. Qxg4
{[%clk 0:01:05.5]} 30... Nxg4 {[%clk 0:01:16.7]} 31. Rb1 {[%clk 0:01:04.7]}
31... R5e7 {[%clk 0:01:07.1]} 32. Bf5 {[%clk 0:01:05.4]} 32... Bd4 {[%clk
0:01:03.4]} 33. Bxg4 {[%clk 0:01:05.2]} 33... Re2 {[%clk 0:01:04]} 34. Bxe2
{[%clk 0:01:05.2]} 34... Rxe2 {[%clk 0:01:03.6]} 35. Rbd1 {[%clk 0:00:59.5]}
35... Bc5 {[%clk 0:01:01.5]} 36. Rd3 {[%clk 0:01:00.4]} 36... Kg7 {[%clk
0:01:01.2]} 37. Rf3 {[%clk 0:01:00.2]} 37... g4 {[%clk 0:00:58.8]} 38. Rf4
{[%clk 0:00:59.5]} 38... f5 {[%clk 0:00:55.7]} 39. Rxf5 {[%clk 0:00:34.1]} 39...
g3 {[%clk 0:00:55]} 40. Kh1 {[%clk 0:00:34]} 40... Bxf2 {[%clk 0:00:48.2]} 41.
Rf3 {[%clk 0:00:31.4]} 41... Re4 {[%clk 0:00:40.7]} 42. R3xf2 {[%clk 0:00:21.4]}
42... Rh4+ {[%clk 0:00:41]} 43. Kg1 {[%clk 0:00:22]} 43... gxf2+ {[%clk
0:00:41.1]} 44. Rxf2 {[%clk 0:00:23.9]} 44... Rxh5 {[%clk 0:00:42.1]} 45. Re2
{[%clk 0:00:25.3]} 45... Rg5 {[%clk 0:00:33.9]} 46. Re7+ {[%clk 0:00:24]} 46...
Kf6 {[%clk 0:00:33.9]} 47. Re6+ {[%clk 0:00:24.6]} 47... Kf5 {[%clk 0:00:35.8]}
48. Rxh6 {[%clk 0:00:23.9]} 1-0

[Event "*** Titled Tuesday Blitz"]
[Site "Chess.com"]
[Date "2019.02.05"]
[Round "6"]
[White "gemarin"]
[Black "SergioGarciaFuentes"]
[Result "0-1"]
[WhiteElo "2086"]
[BlackElo "1998"]
[TimeControl "180+2"]
[EndTime "14:24:10 PST"]
[Termination "SergioGarciaFuentes won by resignation"]

1. d4 {[%clk 0:03:01.9]} 1... Nf6 {[%clk 0:02:51.7]} 2. c4 {[%clk 0:02:53.8]}
2... g6 {[%clk 0:02:51.4]} 3. Nc3 {[%clk 0:02:53.4]} 3... d5 {[%clk 0:02:52]} 4.
cxd5 {[%clk 0:02:51.4]} 4... Nxd5 {[%clk 0:02:52.4]} 5. e4 {[%clk 0:02:52.9]}
5... Nxc3 {[%clk 0:02:53.9]} 6. bxc3 {[%clk 0:02:54.1]} 6... Bg7 {[%clk
0:02:55]} 7. Bc4 {[%clk 0:02:55.3]} 7... c5 {[%clk 0:02:54.6]} 8. Ne2 {[%clk
0:02:56.5]} 8... O-O {[%clk 0:02:47.5]} 9. O-O {[%clk 0:02:56.3]} 9... Nc6
{[%clk 0:02:42]} 10. Be3 {[%clk 0:02:56.1]} 10... b6 {[%clk 0:02:39.4]} 11. f3
{[%clk 0:02:46.4]} 11... Na5 {[%clk 0:02:26.2]} 12. Bd5 {[%clk 0:02:40.2]} 12...
Bb7 {[%clk 0:02:22.6]} 13. Bxb7 {[%clk 0:02:34.9]} 13... Nxb7 {[%clk 0:02:24.1]}
14. Qa4 {[%clk 0:02:28.4]} 14... Qc7 {[%clk 0:02:19.5]} 15. Rac1 {[%clk
0:02:24.7]} 15... a6 {[%clk 0:02:06.1]} 16. d5 {[%clk 0:02:18.3]} 16... b5
{[%clk 0:02:01]} 17. Qc2 {[%clk 0:02:16.5]} 17... Nd6 {[%clk 0:02:02.4]} 18. Bf4
{[%clk 0:02:14]} 18... Qa7 {[%clk 0:02:01.3]} 19. a4 {[%clk 0:02:08.6]} 19...
c4+ {[%clk 0:01:35.3]} 20. Kh1 {[%clk 0:02:08.3]} 20... Qc5 {[%clk 0:01:35.8]}
21. Rb1 {[%clk 0:02:01.5]} 21... e5 {[%clk 0:01:19.9]} 22. dxe6 {[%clk
0:01:45.8]} 22... fxe6 {[%clk 0:01:21.4]} 23. Bxd6 {[%clk 0:01:45.9]} 23... Qxd6
{[%clk 0:01:21.5]} 24. axb5 {[%clk 0:01:47.5]} 24... axb5 {[%clk 0:01:21.8]} 25.
Rxb5 {[%clk 0:01:48.9]} 25... Qd3 {[%clk 0:01:12.7]} 26. Rb2 {[%clk 0:01:48.6]}
26... Ra3 {[%clk 0:01:11.5]} 27. Rc1 {[%clk 0:01:39.3]} 27... Bh6 {[%clk
0:01:03.9]} 28. Rd1 {[%clk 0:01:38.8]} 28... Qe3 {[%clk 0:01:03.2]} 29. h3
{[%clk 0:01:26.1]} 29... Rxf3 {[%clk 0:00:50.4]} 30. Rb8+ {[%clk 0:00:57.9]}
30... Rf8 {[%clk 0:00:38.1]} 31. Rxf8+ {[%clk 0:00:56.1]} 31... Bxf8 {[%clk
0:00:39.5]} 32. Qb2 {[%clk 0:00:50.2]} 32... Rb3 {[%clk 0:00:38.9]} 33. Qa2
{[%clk 0:00:51]} 33... Bc5 {[%clk 0:00:35.3]} 34. Qa8+ {[%clk 0:00:47.6]} 34...
Kg7 {[%clk 0:00:36.3]} 35. Ng1 {[%clk 0:00:25]} 35... Rxc3 {[%clk 0:00:33.4]}
36. Qb7+ {[%clk 0:00:22]} 36... Kh6 {[%clk 0:00:31.2]} 37. Qb1 {[%clk
0:00:15.7]} 37... Rb3 {[%clk 0:00:24.1]} 38. Qa1 {[%clk 0:00:14.7]} 38... c3
{[%clk 0:00:21.6]} 39. Nf3 {[%clk 0:00:14.7]} 39... c2 {[%clk 0:00:20.3]} 40.
Re1 {[%clk 0:00:15.3]} 40... Qxe1+ {[%clk 0:00:20]} 41. Qxe1 {[%clk 0:00:11.6]}
41... Rb1 {[%clk 0:00:21.4]} 42. Kh2 {[%clk 0:00:11.8]} 42... Rxe1 {[%clk
0:00:21.2]} 43. Nxe1 {[%clk 0:00:13.7]} 43... c1=Q {[%clk 0:00:21.3]} 0-1